fUST/lending_fUST_20241210
["ID","MTS","AMOUNT","RATE_DAILY","PERIOD"]
[344772707,1733781040334,-500.0,0.00029863,7]
[344772708,1733781040345,-500.0,0.00029863,7]
[344772710,1733781040356,-500.0,0.00029863,7]
[344772711,1733781040369,-500.0,0.00029863,7]
[344772712,1733781040379,-283.49781025,0.00029863,7]
[344772713,1733781040389,-500.0,0.00029863,7]
[344772714,1733781040399,-500.0,0.00029863,7]
[344772715,1733781040410,-500.0,0.00029863,7]
[344772716,1733781040420,-500.0,0.00029863,7]
[344772717,1733781040431,-500.0,0.00029863,7]
[344772718,1733781040442,-500.0,0.00029863,7]
[344772719,1733781040453,-379.96,0.00029863,7]
[344772720,1733781040464,-302.0,0.00029863,2]
[344772721,1733781040475,-351.3352237,0.00029866,2]
[344772722,1733781040486,-500.0,0.00029873,5]
[344772723,1733781040508,-501.17300198,0.00029873,5]
[344772724,1733781040519,-178.41201349,0.00029873,5]
[344772725,1733781040530,-351.3352237,0.00029886,2]
[344772726,1733781040543,-331.8957636,0.00029898,2]
[344772727,1733781040555,-2847.68,0.000299,7]
[344772729,1733781040566,-500.0,0.000299,7]
[344772731,1733781040578,-1139.3,0.000299,7]
[344772733,1733781040590,-331.89576359,0.000299,2]
[344772734,1733781040602,-331.89576359,0.00029903,2]
[344772735,1733781040614,-331.89576359,0.00029905,2]
[344772736,1733781040626,-331.89576359,0.00029907,2]
[344772737,1733781040638,-210.370754,0.00029907,2]
[344772738,1733781040650,-351.3352237,0.00029907,2]
[344772739,1733781040662,-666.0,0.00029909,2]
[344772740,1733781040674,-629.43857148,0.00029973,5]
[344772741,1733781040685,-500.0,0.00029993,7]
[344772742,1733781040697,-615.75994265,0.00029993,2]
[344772743,1733781040708,-167.16173807,0.00029993,2]
[344772744,1733781040718,-173.20073912,0.00029993,2]
[344772745,1733781040728,-500.0,0.00029994,7]
[344772746,1733781040740,-629.18764773,0.00029994,7]
[344772747,1733781040756,-500.0,0.00029994,7]
[344772748,1733781040767,-500.0,0.00029994,7]
[344772749,1733781040777,-500.0,0.00029994,7]
[344772750,1733781040788,-1443.12,0.00029994,7]
[344772751,1733781040798,-500.0,0.00029994,7]
[344772752,1733781040808,-500.0,0.00029994,7]
[344772753,1733781040818,-500.0,0.00029994,7]
[344772755,1733781040828,-500.0,0.00029994,7]
[344772757,1733781040837,-200.0,0.00029994,7]
[344772759,1733781040847,-504.92947223,0.00029994,7]
[344772761,1733781040858,-500.0,0.00029994,7]
[344772763,1733781040868,-500.0,0.00029995,7]
[344772764,1733781040879,-575.19,0.00029995,7]
[344772766,1733781040889,-500.0,0.00029995,7]
[344772768,1733781040899,-500.0,0.00029996,7]
[344772770,1733781040909,-2847.68,0.00029997,7]
[344772771,1733781040919,-2847.68,0.00029997,7]
[344772772,1733781040929,-2847.68,0.00029997,7]
[344772773,1733781040938,-2847.68,0.00029997,7]
[344772774,1733781040951,-500.0,0.00029997,7]
[344772775,1733781040960,-500.0,0.00029997,7]
[344772776,1733781040970,-500.0,0.00029997,7]
[344772777,1733781040980,-500.0,0.00029997,7]
[344772778,1733781040993,-500.0,0.00029997,7]
[344772779,1733781041003,-500.0,0.00029997,7]
[344772780,1733781041013,-500.0,0.00029997,7]
[344772781,1733781041022,-500.0,0.00029997,7]
[344772782,1733781041032,-500.0,0.00029997,7]
[344772783,1733781041042,-500.0,0.00029997,7]
[344772784,1733781041051,-566.45149899,0.00029997,7]
[344772785,1733781041061,-500.0,0.00029997,7]
[344772786,1733781041071,-200.0,0.00029997,7]
[344772787,1733781041081,-310.51404145,0.00029997,7]
[344772788,1733781041091,-1139.3,0.00029997,7]
[344772789,1733781041102,-1139.3,0.00029997,7]
[344772791,1733781041111,-1139.3,0.00029997,7]
[344772792,1733781041121,-1139.3,0.00029997,7]
[344772793,1733781041131,-495.6135505,0.00029997,7]
[344772794,1733781041141,-500.0,0.00029998,7]
[344772795,1733781041151,-500.0,0.00029998,7]
[344772796,1733781041161,-500.0,0.00029998,7]
[344772797,1733781041170,-500.0,0.00029998,7]
[344772798,1733781041180,-2847.68,0.00029998,7]
[344772799,1733781041190,-500.0,0.00029998,7]
[344772800,1733781041200,-1443.12,0.00029998,7]
[344772801,1733781041210,-500.0,0.00029998,7]
[344772802,1733781041219,-500.0,0.00029998,7]
[344772803,1733781041229,-500.0,0.00029998,7]
[344772804,1733781041241,-500.0,0.00029998,7]
[344772805,1733781041252,-500.0,0.00029998,7]
[344772806,1733781041262,-1139.3,0.00029998,7]
[344772807,1733781041272,-151.0,0.00029999,7]
[344772808,1733781041282,-500.0,0.00029999,7]
[344772809,1733781041296,-575.19,0.00029999,7]
[344772810,1733781041306,-500.0,0.00029999,7]
[344772811,1733781041316,-500.0,0.00029999,7]
[344772812,1733781041326,-500.0,0.00029999,7]
[344772813,1733781041337,-500.0,0.00029999,7]
[344772814,1733781041347,-500.0,0.00029999,7]
[344772815,1733781041358,-2847.68,0.00029999,7]
[344772816,1733781041367,-500.0,0.00029999,7]
[344772817,1733781041378,-1443.12,0.00029999,7]
[344772818,1733781041388,-500.0,0.00029999,7]
[344772819,1733781041397,-500.0,0.00029999,7]
[344772820,1733781041407,-500.0,0.00029999,7]
[344772821,1733781041416,-500.0,0.00029999,7]
[344772822,1733781041426,-1139.3,0.00029999,7]
[344772823,1733781041437,-476.76,0.0003,2]
[344772824,1733781041447,-300.0,0.0003,14]
[344772825,1733781041457,-500.0,0.0003,7]
[344772826,1733781041467,-500.0,0.0003,7]
[344772827,1733781041476,-500.0,0.0003,7]
[344772828,1733781041486,-500.0,0.0003,7]
[344772829,1733781041497,-547.12,0.0003,7]
[344772830,1733781041507,-575.19,0.0003,7]
[344772831,1733781041516,-575.19,0.0003,7]
[344772832,1733781041526,-575.19,0.0003,7]
[344772833,1733781041536,-575.19,0.0003,7]
[344772834,1733781041546,-575.19,0.0003,7]
[344772835,1733781041556,-575.19,0.0003,7]
[344772836,1733781041566,-575.19,0.0003,7]
[344772837,1733781041575,-575.19,0.0003,7]
[344772838,1733781041584,-575.19,0.0003,7]
[344772839,1733781041594,-575.19,0.0003,7]
[344772840,1733781041603,-191.65778992,0.0003,7]
[344772841,1733781041711,-383.53221008,0.0003,7]
[344772842,1733781041721,-575.19,0.0003,7]
[344772843,1733781041730,-575.19,0.0003,7]
[344772844,1733781041740,-575.19,0.0003,7]
[344772845,1733781041749,-575.19,0.0003,7]
[344772846,1733781041759,-575.19,0.0003,7]
[344772847,1733781041768,-36.91231844,0.0003,7]
[344772848,1733781041792,-538.27768156,0.0003,7]
[344772849,1733781041802,-575.19,0.0003,7]
[344772850,1733781041811,-575.32179986,0.0003,7]
[344772851,1733781041820,-500.0,0.0003,7]
[344772852,1733781041830,-493.28,0.0003,7]
[344772853,1733781041839,-687.0,0.0003,20]
[344772854,1733781041849,-684.0,0.0003,20]
[344772855,1733781041859,-684.0,0.0003,20]
[344772856,1733781041868,-684.0,0.0003,20]
[344772857,1733781041878,-153.73,0.0003,31]
[344772858,1733781041887,-153.73,0.0003,31]
[344772859,1733781041896,-153.73,0.0003,31]
[344772860,1733781041906,-153.73,0.0003,31]
[344772861,1733781041915,-153.73,0.0003,31]
[344772862,1733781041928,-153.73,0.0003,31]
[344772863,1733781041938,-500.0,0.00030005,7]
[344772864,1733781041947,-500.0,0.00030005,7]
[344772865,1733781041957,-500.0,0.00030006,7]
[344772866,1733781041967,-500.0,0.00030006,7]
[344772867,1733781041976,-268.12,0.00030006,7]
[344772868,1733781041986,-397.9298631,0.00030006,7]
[344772869,1733781042004,-500.0,0.00030006,7]
[344772870,1733781042014,-500.0,0.00030006,7]
[344772871,1733781042024,-500.0,0.00030006,7]
[344772873,1733781042034,-508.52,0.00030006,7]
[344772874,1733781042044,-500.0,0.00030006,7]
[344772875,1733781042053,-500.0,0.00030006,7]
[344772876,1733781042063,-500.0,0.00030006,7]
[344772877,1733781042072,-500.0,0.00030006,7]
[344772878,1733781042082,-622.86,0.00030006,7]
[344772879,1733781042092,-2847.68,0.00030006,7]
[344772880,1733781042101,-2847.68,0.00030006,7]
[344772881,1733781042111,-2847.68,0.00030006,7]
[344772882,1733781042121,-2847.68,0.00030006,7]
[344772883,1733781042130,-500.0,0.00030006,7]
[344772884,1733781042139,-183.93192261,0.00030006,7]
[344772885,1733781042148,-1443.12,0.00030006,7]
[344772886,1733781042158,-1443.12,0.00030006,7]
[344772887,1733781042168,-1443.12,0.00030006,7]
[344772888,1733781042178,-1443.12,0.00030006,7]
[344772889,1733781042187,-1443.12,0.00030006,7]
[344772890,1733781042197,-1443.12,0.00030006,7]
[344772891,1733781042206,-1443.12,0.00030006,7]
[344772892,1733781042216,-1443.12,0.00030006,7]
[344772893,1733781042226,-1443.12,0.00030006,7]
[344772894,1733781042235,-1443.12,0.00030006,7]
[344772895,1733781042244,-1443.12,0.00030006,7]
[344772896,1733781042255,-1443.20349527,0.00030006,7]
[344772897,1733781042265,-500.0,0.00030006,7]
[344772898,1733781042275,-500.0,0.00030006,7]
[344772899,1733781042284,-500.0,0.00030006,7]
[344772900,1733781042294,-500.0,0.00030006,7]
[344772901,1733781042304,-500.0,0.00030006,7]
[344772902,1733781042314,-500.0,0.00030006,7]
[344772903,1733781042323,-500.0,0.00030006,7]
[344772904,1733781042332,-555.5831131,0.00030006,7]
[344772905,1733781042342,-500.0,0.00030006,7]
[344772906,1733781042351,-500.0,0.00030006,7]
[344772907,1733781042361,-500.0,0.00030006,7]
[344772908,1733781042371,-229.03265784,0.00030006,7]
[344772909,1733781042381,-500.0,0.00030006,7]
[344772910,1733781042391,-500.0,0.00030006,7]
[344772911,1733781042402,-500.0,0.00030006,7]
[344772912,1733781042412,-500.0,0.00030006,7]
[344772913,1733781042421,-500.0,0.00030006,7]
[344772914,1733781042431,-1139.3,0.00030006,7]
[344772915,1733781042441,-1139.3,0.00030006,7]
[344772916,1733781042451,-1139.3,0.00030006,7]
[344772917,1733781042461,-1139.3,0.00030006,7]
[344772918,1733781042471,-292.186081,0.00030007,7]
[344772919,1733781042482,-185.318653,0.00030007,7]
[344772920,1733781042491,-185.318653,0.00030007,7]
[344772921,1733781042501,-185.318653,0.00030007,7]
[344772922,1733781042511,-185.318653,0.00030007,7]
[344772923,1733781042520,-185.318653,0.00030007,7]
[344772924,1733781042529,-185.318653,0.00030007,7]
[344772925,1733781042539,-185.318653,0.00030007,7]
[344772926,1733781042549,-185.318653,0.00030007,7]
[344772927,1733781042559,-185.318653,0.00030007,7]
[344772928,1733781042568,-185.318653,0.00030007,7]
[344772929,1733781042578,-185.318653,0.00030007,7]
[344772930,1733781042587,-185.318653,0.00030007,7]
[344772931,1733781042597,-185.318653,0.00030007,7]
[344772932,1733781042606,-185.318653,0.00030007,7]
[344772933,1733781042616,-185.318653,0.00030007,7]
[344772934,1733781042626,-185.318653,0.00030007,7]
[344772935,1733781042635,-185.318653,0.00030007,7]
[344772936,1733781042645,-185.318653,0.00030007,7]
[344772937,1733781042655,-185.318653,0.00030007,7]
[344772938,1733781042664,-185.318646,0.00030007,7]
[344772939,1733781042675,-151.0,0.00030007,7]
[344772940,1733781042685,-151.0,0.00030007,7]
[344772941,1733781042695,-151.0,0.00030007,7]
[344772942,1733781042705,-151.0,0.00030007,7]
[344772943,1733781042715,-151.0,0.00030007,7]
[344772944,1733781042725,-151.0,0.00030007,7]
[344772945,1733781042734,-151.0,0.00030007,7]
[344772946,1733781042744,-151.0,0.00030007,7]
[344772947,1733781042754,-151.0,0.00030007,7]
[344772948,1733781042764,-265.281764,0.00030007,7]
[344772949,1733781042775,-151.0,0.00030007,7]
[344772950,1733781042785,-151.0,0.00030007,7]
[344772951,1733781042795,-151.0,0.00030007,7]
[344772952,1733781042804,-252.845371,0.00030007,7]
[344772953,1733781042815,-221.05126,0.00030007,7]
[344772954,1733781042825,-221.05126,0.00030007,7]
[344772955,1733781042834,-221.05126,0.00030007,7]
[344772956,1733781042844,-221.05126,0.00030007,7]
[344772957,1733781042853,-221.05126,0.00030007,7]
[344772958,1733781042863,-151.0,0.00030007,7]
[344772959,1733781042875,-751.629558,0.00030007,7]
[344772960,1733781042885,-751.629558,0.00030007,7]
[344772961,1733781042895,-751.629558,0.00030007,7]
[344772962,1733781042905,-751.629558,0.00030007,7]
[344772963,1733781042917,-751.629558,0.00030007,7]
[344772964,1733781042927,-751.629558,0.00030007,7]
[344772965,1733781042938,-751.629558,0.00030007,7]
[344772966,1733781042947,-751.629558,0.00030007,7]
[344772967,1733781042957,-751.629558,0.00030007,7]
[344772968,1733781042967,-751.629554,0.00030007,7]
[344772969,1733781042976,-300.0,0.00030007,7]
[344772970,1733781042986,-556.111795,0.00030007,7]
[344772971,1733781043009,-556.111795,0.00030007,7]
[344772972,1733781043020,-556.111795,0.00030007,7]
[344772973,1733781043030,-556.111795,0.00030007,7]
[344772974,1733781043041,-556.111795,0.00030007,7]
[344772975,1733781043052,-556.111795,0.00030007,7]
[344772976,1733781043062,-556.111795,0.00030007,7]
[344772977,1733781043072,-556.111795,0.00030007,7]
[344772978,1733781043081,-556.111795,0.00030007,7]
[344772979,1733781043091,-556.111795,0.00030007,7]
[344772980,1733781043101,-556.111795,0.00030007,7]
[344772981,1733781043111,-556.111795,0.00030007,7]
[344772982,1733781043121,-556.111795,0.00030007,7]
[344772983,1733781043130,-556.111795,0.00030007,7]
[344772984,1733781043140,-556.111795,0.00030007,7]
[344772985,1733781043150,-556.111795,0.00030007,7]
[344772986,1733781043159,-556.111795,0.00030007,7]
[344772988,1733781043169,-556.111795,0.00030007,7]
[344772990,1733781043179,-556.111795,0.00030007,7]
[344772992,1733781043189,-556.111787,0.00030007,7]
[344772994,1733781043198,-227.301248,0.00030007,7]
[344772996,1733781043208,-227.301248,0.00030007,7]
[344772997,1733781043217,-227.301248,0.00030007,7]
[344772998,1733781043228,-227.301248,0.00030007,7]
[344772999,1733781043239,-227.301248,0.00030007,7]
[344773000,1733781043249,-227.301248,0.00030007,7]
[344773001,1733781043258,-227.301248,0.00030007,7]
[344773002,1733781043269,-227.301248,0.00030007,7]
[344773003,1733781043278,-227.301248,0.00030007,7]
[344773004,1733781043289,-227.301248,0.00030007,7]
[344773005,1733781043298,-227.301248,0.00030007,7]
[344773006,1733781043308,-227.301248,0.00030007,7]
[344773007,1733781043317,-227.301248,0.00030007,7]
[344773008,1733781043326,-227.301248,0.00030007,7]
[344773009,1733781043335,-227.301248,0.00030007,7]
[344773010,1733781043345,-450.513817,0.00030007,7]
[344773011,1733781043355,-227.301248,0.00030007,7]
[344773013,1733781043364,-450.513817,0.00030007,7]
[344773014,1733781043374,-227.301248,0.00030007,7]
[344773015,1733781043383,-450.513817,0.00030007,7]
[344773016,1733781043393,-227.301248,0.00030007,7]
[344773018,1733781043402,-450.513817,0.00030007,7]
[344773019,1733781043412,-227.301248,0.00030007,7]
[344773020,1733781043421,-450.513817,0.00030007,7]
[344773021,1733781043431,-227.301244,0.00030007,7]
[344773022,1733781043440,-450.513817,0.00030007,7]
[344773024,1733781043450,-450.513817,0.00030007,7]
[344773025,1733781043460,-450.513817,0.00030007,7]
[344773026,1733781043469,-450.513817,0.00030007,7]
[344773027,1733781043478,-450.513817,0.00030007,7]
[344773028,1733781043488,-450.513817,0.00030007,7]
[344773029,1733781043498,-450.513817,0.00030007,7]
[344773030,1733781043507,-450.513817,0.00030007,7]
[344773031,1733781043517,-450.513817,0.00030007,7]
[344773032,1733781043528,-450.513817,0.00030007,7]
[344773033,1733781043538,-450.513817,0.00030007,7]
[344773034,1733781043548,-450.513817,0.00030007,7]
[344773035,1733781043558,-450.513817,0.00030007,7]
[344773036,1733781043568,-450.513817,0.00030007,7]
[344773037,1733781043577,-450.513809,0.00030007,7]
[344773038,1733781043587,-151.0,0.00030007,7]
[344773039,1733781043597,-151.0,0.00030007,7]
[344773040,1733781043606,-151.0,0.00030007,7]
[344773041,1733781043616,-151.0,0.00030007,7]
[344773042,1733781043625,-151.0,0.00030007,7]
[344773043,1733781043635,-151.0,0.00030007,7]
[344773044,1733781043644,-151.0,0.00030007,7]
[344773046,1733781043653,-212.24996,0.00030007,7]
[344773047,1733781043663,-2847.68,0.00030007,7]
[344773048,1733781043672,-2847.68,0.00030007,7]
[344773049,1733781043682,-2847.68,0.00030007,7]
[344773050,1733781043692,-2847.68,0.00030007,7]
[344773052,1733781043701,-2847.72134523,0.00030007,7]
[344773053,1733781043711,-198.125099,0.00030007,7]
[344773055,1733781043720,-198.125099,0.00030007,7]
[344773057,1733781043730,-198.125099,0.00030007,7]
[344773058,1733781043739,-198.125099,0.00030007,7]
[344773060,1733781043749,-198.125099,0.00030007,7]
[344773061,1733781043759,-198.125099,0.00030007,7]
[344773062,1733781043768,-198.125099,0.00030007,7]
[344773063,1733781043778,-198.125099,0.00030007,7]
[344773064,1733781043787,-198.125099,0.00030007,7]
[344773065,1733781043796,-198.125099,0.00030007,7]
[344773066,1733781043806,-198.125099,0.00030007,7]
[344773067,1733781043816,-198.125099,0.00030007,7]
[344773068,1733781043825,-198.125099,0.00030007,7]
[344773069,1733781043835,-198.125099,0.00030007,7]
[344773070,1733781043845,-198.125099,0.00030007,7]
[344773071,1733781043855,-198.125099,0.00030007,7]
[344773072,1733781043865,-198.125099,0.00030007,7]
[344773073,1733781043875,-198.125099,0.00030007,7]
[344773074,1733781043885,-198.125099,0.00030007,7]
[344773076,1733781043894,-198.125093,0.00030007,7]
[344773077,1733781043904,-151.0,0.00030007,7]
[344773079,1733781043914,-151.0,0.00030007,7]
[344773081,1733781043923,-151.0,0.00030007,7]
[344773082,1733781043933,-151.0,0.00030007,7]
[344773083,1733781043942,-151.0,0.00030007,7]
[344773084,1733781043953,-151.0,0.00030007,7]
[344773086,1733781043962,-151.0,0.00030007,7]
[344773087,1733781043972,-151.0,0.00030007,7]
[344773088,1733781043981,-151.0,0.00030007,7]
[344773089,1733781043992,-151.0,0.00030007,7]
[344773091,1733781044008,-151.0,0.00030007,7]
[344773092,1733781044018,-151.0,0.00030007,7]
[344773093,1733781044027,-151.0,0.00030007,7]
[344773094,1733781044037,-151.0,0.00030007,7]
[344773095,1733781044052,-233.67278,0.00030007,7]
[344773096,1733781044062,-151.0,0.00030007,7]
[344773098,1733781044071,-151.0,0.00030007,7]
[344773099,1733781044081,-151.0,0.00030007,7]
[344773100,1733781044091,-151.0,0.00030007,7]
[344773101,1733781044100,-151.0,0.00030007,7]
[344773102,1733781044110,-151.0,0.00030007,7]
[344773103,1733781044119,-151.0,0.00030007,7]
[344773104,1733781044129,-151.0,0.00030007,7]
[344773105,1733781044139,-151.0,0.00030007,7]
[344773106,1733781044148,-151.0,0.00030007,7]
[344773107,1733781044158,-151.0,0.00030007,7]
[344773108,1733781044167,-151.0,0.00030007,7]
[344773109,1733781044176,-250.726722,0.00030007,7]
[344773110,1733781044185,-151.0,0.00030007,7]
[344773112,1733781044195,-151.0,0.00030007,7]
[344773113,1733781044204,-151.0,0.00030007,7]
[344773114,1733781044214,-151.0,0.00030007,7]
[344773115,1733781044223,-151.0,0.00030007,7]
[344773116,1733781044233,-151.0,0.00030007,7]
[344773117,1733781044243,-151.0,0.00030007,7]
[344773118,1733781044252,-151.0,0.00030007,7]
[344773119,1733781044356,-227.718776,0.00030007,7]
[344773121,1733781044368,-1139.3,0.00030007,7]
[344773122,1733781044377,-1139.3,0.00030007,7]
[344773123,1733781044387,-1139.3,0.00030007,7]
[344773124,1733781044397,-1139.3,0.00030007,7]
[344773125,1733781044406,-1139.42,0.00030007,7]
[344773126,1733781044416,-151.0,0.00030007,7]
[344773127,1733781044426,-151.0,0.00030007,7]
[344773128,1733781044436,-151.0,0.00030007,7]
[344773129,1733781044447,-284.241512,0.00030007,7]
[344773130,1733781044457,-151.0,0.00030007,7]
[344773131,1733781044467,-151.0,0.00030007,7]
[344773132,1733781044476,-153.191288,0.00030007,7]
[344773133,1733781044486,-151.0,0.00030007,7]
[344773134,1733781044502,-159.088662,0.00030007,7]
[344773135,1733781044512,-17436.94280745,0.00030007,2]
[344773136,1733781044543,-2973.08929108,0.00030007,2]
[344773137,1733781044554,-41533.32233384,0.00030007,10]
[344773138,1733781044565,-5596.53705894,0.00030007,10]
[344773168,1733781046719,-19572.29668,0.00030007,10]
[344773169,1733781046772,-3715.19973924,0.00030007,10]
[344773170,1733781046784,-9722.6,0.00030007,10]
[344773171,1733781046824,-22799.9998,0.00030007,10]
[344773237,1733781503522,270.944963,0.00013973,2]
[344773318,1733782231823,-270.944963,0.00020447,2]
[344773320,1733782231834,-300.0,0.00024499,2]
[344773321,1733782231844,-300.0,0.00024499,2]
[344773322,1733782231853,-1292.29117829,0.000245,5]
[344773323,1733782231865,-2797.5300002,0.000245,5]
[344773324,1733782231907,-19919.5196127,0.000245,5]
[344773338,1733782237825,-158.51276388,0.00024499,2]
[344773339,1733782237836,-1342.49267683,0.000245,5]
[344773341,1733782237848,-1492.7308529,0.000245,5]
[344773343,1733782237860,-5355.03881526,0.000245,5]
[344773346,1733782237871,-1478.81999997,0.000245,5]
[344773349,1733782237897,-9568.99182858,0.000245,5]
[344773351,1733782237909,-5985.31933765,0.000245,5]
[344773391,1733782239855,-72627.05255027,0.000245,5]
[344773444,1733782243104,-2876.35025454,0.000245,5]
[344773445,1733782243116,-513.4497663,0.000245,5]
[344773446,1733782243129,-48414.99999999,0.000245,5]
[344773499,1733782414541,262.131009,0.00013973,2]
[344773577,1733782984911,2082.89687304,0.0002,2]
[344773655,1733783427615,257.396968,0.00013973,2]
[344773687,1733783432312,-544.33499999,0.00020243,2]
[344773688,1733783432324,-1083.90377118,0.00020243,2]
[344773690,1733783432335,-651.4317,0.00020243,2]
[344773694,1733783432356,-871.4848828,0.00020243,2]
[344773700,1733783432404,-12.83844554,0.00020243,2]
[344773702,1733783432414,-257.396968,0.00020447,2]
[344773703,1733783432423,-165.881497,0.00023766,2]
[344773706,1733783432433,-190.269641,0.00023973,2]
[344773707,1733783432442,-300.0,0.00024499,2]
[344773709,1733783432452,-300.0,0.00024499,2]
[344773711,1733783432461,-23623.52312652,0.000245,5]
[344773713,1733783432471,-2061.51377319,0.000245,2]
[344773717,1733783432482,-474.255,0.000245,2]
[344773720,1733783432494,-803.0,0.000245,2]
[344773781,1733783438219,-14063.45016964,0.000245,2]
[344773784,1733783438627,-1304.80138759,0.000245,2]
[344773785,1733783438640,-954.82012529,0.000245,2]
[344773786,1733783438652,-42234.670278,0.000245,2]
[344773787,1733783438663,-14841.11415929,0.000245,2]
[344773788,1733783438673,-191.0,0.00024932,2]
[344773789,1733783438683,-152.98409442,0.00024999,2]
[344773790,1733783438692,-250.0,0.00024999,2]
[344773791,1733783438702,-176.58772242,0.00024999,2]
[344773792,1733783438712,-500.0,0.00024999,2]
[344773793,1733783438722,-22784.0,0.00025,2]
[344773794,1733783438732,-191.0,0.00025,2]
[344773795,1733783438741,-5108.44292186,0.00025,7]
[344773796,1733783438752,-21217.6812234,0.00025059,2]
[344773797,1733783438763,-190.269641,0.00025747,2]
[344773798,1733783438774,-191.0,0.0002589,2]
[344773799,1733783438783,-660.0,0.00026384,2]
[344773800,1733783438794,-420.0,0.00026554,2]
[344773801,1733783438803,-257.396968,0.00026921,2]
[344773802,1733783438813,-420.0,0.00026949,2]
[344773803,1733783438822,-595.5626429,0.00027045,2]
[344773804,1733783438832,-196.0,0.00027185,2]
[344773805,1733783438841,-190.269641,0.00027521,2]
[344773806,1733783438851,-595.5626429,0.00027761,2]
[344773807,1733783438861,-532.0,0.00028366,2]
[344773808,1733783438871,-2371.0,0.00028366,2]
[344773809,1733783438880,-2166.0,0.00028366,2]
[344773810,1733783438889,-595.5626429,0.00028476,2]
[344773811,1733783438899,-317.11,0.0002852,2]
[344773812,1733783438908,-587.0,0.00028782,2]
[344773813,1733783438917,-500.0,0.00028943,7]
[344773814,1733783438927,-191.0,0.00028997,2]
[344773815,1733783438936,-981.85,0.00029,2]
[344773816,1733783438945,-595.5626429,0.00029191,2]
[344773817,1733783438955,-155.00222371,0.00029361,2]
[344773818,1733783438965,-245.68209768,0.000296,2]
[344773819,1733783438975,-252.71545441,0.000296,2]
[344773820,1733783438984,-587.0,0.00029644,2]
[344773821,1733783438995,-245.68209768,0.00029676,2]
[344773822,1733783439009,-500.0,0.00029699,2]
[344773823,1733783439028,-396.48766694,0.00029699,2]
[344773824,1733783439039,-34644.42038638,0.000297,2]
[344773825,1733783439048,-268834.79991779,0.000297,120]
[344773826,1733783439058,-6861.03263356,0.000297,2]
[344773827,1733783439068,-245.68209768,0.00029753,2]
[344773828,1733783439079,-154.04,0.000298,31]
[344773829,1733783439089,-154.04,0.000298,31]
[344773830,1733783439098,-154.04,0.000298,31]
[344773831,1733783439109,-245.68209768,0.00029829,2]
[344773832,1733783439119,-388.63489384,0.00029857,2]
[344773833,1733783439130,-160.0,0.00029862,10]
[344773834,1733783439140,-431.45407243,0.00029862,2]
[344773835,1733783439150,-291.15385398,0.00029863,7]
[344773836,1733783439159,-500.0,0.00029863,7]
[344773837,1733783439169,-500.0,0.00029863,7]
[344773838,1733783439179,-500.0,0.00029863,7]
[344773839,1733783439189,-500.0,0.00029863,7]
[344773840,1733783439202,-396.32178038,0.00029863,7]
[344773841,1733783439212,-500.0,0.00029863,7]
[344773842,1733783439222,-500.0,0.00029863,7]
[344773843,1733783439231,-500.0,0.00029863,7]
[344773844,1733783439241,-500.0,0.00029863,7]
[344773845,1733783439251,-500.0,0.00029863,7]
[344773846,1733783439264,-500.0,0.00029863,7]